[Event "Titled Tuesday Blitz September 27 Early 2022"]
[White "White, John S."]
[Black "Tarnowska, Aleksandra"]
[WhiteFideId "2502348"]
[BlackFideId "1180967"]
[WhiteElo "1853"]
[BlackElo "1700"]
[Result "0-1"]
[Round "09"]
[TimeControl "180+1"]
[Date "2022.09.27"]
[WhiteClock "0:00:15"]
[BlackClock "0:00:03"]

1. e4 {[%clk 0:02:46]}  c5 {[%clk 0:02:57]} 2. Nf3 {[%clk 0:02:45]}  e6 {[%clk 0:02:56]} 3. d4 {[%clk 0:02:46]}  cxd4 {[%clk 0:02:54]} 4. Nxd4 {[%clk 0:02:47]}  a6 {[%clk 0:02:54]} 5. Nc3 {[%clk 0:02:47]}  Qc7 {[%clk 0:02:53]} 6. Be3 {[%clk 0:02:46]}  b5 {[%clk 0:02:52]} 7. Be2 {[%clk 0:02:40]}  Bb7 {[%clk 0:02:52]} 8. Qd2 {[%clk 0:02:36]}  Nf6 {[%clk 0:02:31]} 9. f3 {[%clk 0:02:33]}  Be7 {[%clk 0:02:25]} 10. O-O {[%clk 0:02:31]}  O-O {[%clk 0:02:26]} 11. Rad1 {[%clk 0:02:23]}  Nc6 {[%clk 0:02:22]} 12. Nxc6 {[%clk 0:02:12]}  dxc6 {[%clk 0:02:07]} 13. Bg5 {[%clk 0:01:58]}  Rfd8 {[%clk 0:02:02]} 14. Qe3 {[%clk 0:01:57]}  c5 {[%clk 0:01:57]} 15. a3 {[%clk 0:01:45]}  c4 {[%clk 0:01:57]} 16. Kh1 {[%clk 0:01:41]}  h6 {[%clk 0:01:46]} 17. Bf4 {[%clk 0:01:32]}  e5 {[%clk 0:01:38]} 18. Bg3 {[%clk 0:01:23]}  Bc5 {[%clk 0:01:34]} 19. Qc1 {[%clk 0:01:23]}  Nh5 {[%clk 0:01:00]} 20. Bf2 {[%clk 0:01:17]}  Bxf2 {[%clk 0:01:00]} 21. Rxf2 {[%clk 0:01:16]}  Rxd1+ {[%clk 0:01:00]} 22. Qxd1 {[%clk 0:01:12]}  Rd8 {[%clk 0:01:00]} 23. Qc1 {[%clk 0:01:08]}  Qe7 {[%clk 0:00:48]} 24. g3 {[%clk 0:01:05]}  Qe6 {[%clk 0:00:44]} 25. Kg2 {[%clk 0:01:03]}  Qg6 {[%clk 0:00:41]} 26. Kh1 {[%clk 0:00:58]}  Qb6 {[%clk 0:00:28]} 27. Qe1 {[%clk 0:00:52]}  Nf6 {[%clk 0:00:28]} 28. Bf1 {[%clk 0:00:44]}  Qd4 {[%clk 0:00:26]} 29. Qe2 {[%clk 0:00:42]}  a5 {[%clk 0:00:15]} 30. Nxb5 {[%clk 0:00:37]}  Qxb2 {[%clk 0:00:16]} 31. Qxc4 {[%clk 0:00:37]}  Ba6 {[%clk 0:00:07]} 32. Qc7 {[%clk 0:00:31]}  Rd1 {[%clk 0:00:07]} 33. Nd6 {[%clk 0:00:21]}  Rxf1+ {[%clk 0:00:06]} 34. Rxf1 {[%clk 0:00:20]}  Bxf1 {[%clk 0:00:05]} 35. Qd8+ {[%clk 0:00:18]}  Kh7 {[%clk 0:00:05]} 36. Nxf7 {[%clk 0:00:18]}  Qxc2 {[%clk 0:00:04]} 37. Qh8+ {[%clk 0:00:17]}  Kg6 {[%clk 0:00:04]} 38. Nxe5+ {[%clk 0:00:17]}  Kh5 {[%clk 0:00:03]} 39. Qxg7 {[%clk 0:00:15]}  Qg2# {[%clk 0:00:03]} 0-1


[Site "https://www.chess.com"]

[Event "Titled Tuesday Blitz September 27 Early 2022"]
[White "Zanette, Edgard Vinicius"]
[Black "Alexikov, Alexander"]
[WhiteFideId "2109263"]
[BlackFideId "14103958"]
[WhiteElo "2182"]
[BlackElo "2222"]
[Result "1-0"]
[Round "09"]
[TimeControl "180+1"]
[Date "2022.09.27"]
[WhiteClock "0:00:24"]
[BlackClock "0:00:38"]

1. e4 {[%clk 0:03:00]}  c5 {[%clk 0:02:59]} 2. Nc3 {[%clk 0:02:58]}  Nc6 {[%clk 0:02:58]} 3. f4 {[%clk 0:02:56]}  g6 {[%clk 0:02:58]} 4. Nf3 {[%clk 0:02:56]}  Bg7 {[%clk 0:02:58]} 5. Bb5 {[%clk 0:02:56]}  Nd4 {[%clk 0:02:56]} 6. O-O {[%clk 0:02:55]}  Nxb5 {[%clk 0:02:45]} 7. Nxb5 {[%clk 0:02:56]}  d5 {[%clk 0:02:44]} 8. exd5 {[%clk 0:02:54]}  a6 {[%clk 0:02:44]} 9. Nc3 {[%clk 0:02:53]}  Nf6 {[%clk 0:02:44]} 10. d4 {[%clk 0:02:49]}  Nxd5 {[%clk 0:02:38]} 11. dxc5 {[%clk 0:02:47]}  Nxc3 {[%clk 0:02:35]} 12. Qxd8+ {[%clk 0:02:43]}  Kxd8 {[%clk 0:02:34]} 13. bxc3 {[%clk 0:02:44]}  Bxc3 {[%clk 0:02:31]} 14. Rd1+ {[%clk 0:02:36]}  Kc7 {[%clk 0:02:27]} 15. Rb1 {[%clk 0:02:35]}  Bf5 {[%clk 0:02:21]} 16. Bb2 {[%clk 0:02:12]}  Bxb2 {[%clk 0:02:14]} 17. Rxb2 {[%clk 0:02:11]}  f6 {[%clk 0:01:58]} 18. Re1 {[%clk 0:02:06]}  Rhe8 {[%clk 0:01:55]} 19. Nd4 {[%clk 0:02:03]}  Bd7 {[%clk 0:01:51]} 20. Ne6+ {[%clk 0:01:52]}  Bxe6 {[%clk 0:01:45]} 21. Rxe6 {[%clk 0:01:51]}  Rad8 {[%clk 0:01:44]} 22. Reb6 {[%clk 0:01:31]}  Rd1+ {[%clk 0:01:34]} 23. Kf2 {[%clk 0:01:30]}  Rb8 {[%clk 0:01:27]} 24. c6 {[%clk 0:01:28]}  Rd6 {[%clk 0:01:22]} 25. Rxb7+ {[%clk 0:01:24]}  Rxb7 {[%clk 0:01:21]} 26. cxb7 {[%clk 0:01:11]}  Kb8 {[%clk 0:01:20]} 27. Ke3 {[%clk 0:01:09]}  Rd5 {[%clk 0:01:19]} 28. c4 {[%clk 0:00:57]}  Ra5 {[%clk 0:01:18]} 29. Kd4 {[%clk 0:00:54]}  e5+ {[%clk 0:01:09]} 30. fxe5 {[%clk 0:00:51]}  fxe5+ {[%clk 0:01:09]} 31. Ke4 {[%clk 0:00:49]}  Rc5 {[%clk 0:01:08]} 32. Kd3 {[%clk 0:00:47]}  h5 {[%clk 0:01:02]} 33. h4 {[%clk 0:00:47]}  Ra5 {[%clk 0:00:59]} 34. Kc3 {[%clk 0:00:33]}  Rc5 {[%clk 0:00:54]} 35. Kd3 {[%clk 0:00:26]}  Ra5 {[%clk 0:00:53]} 36. Ke4 {[%clk 0:00:24]}  Rc5 {[%clk 0:00:52]} 37. Rb4 {[%clk 0:00:24]}  a5 {[%clk 0:00:48]} 38. Rb5 {[%clk 0:00:20]}  Rxc4+ {[%clk 0:00:47]} 39. Kxe5 {[%clk 0:00:20]}  Rxh4 {[%clk 0:00:46]} 40. Kf6 {[%clk 0:00:21]}  Rg4 {[%clk 0:00:45]} 41. Rg5 {[%clk 0:00:20]}  Rxg5 {[%clk 0:00:41]} 42. Kxg5 {[%clk 0:00:19]}  Kxb7 {[%clk 0:00:41]} 43. g3 {[%clk 0:00:19]}  Kc6 {[%clk 0:00:41]} 44. Kxg6 {[%clk 0:00:20]}  Kc5 {[%clk 0:00:40]} 45. Kxh5 {[%clk 0:00:21]}  Kb4 {[%clk 0:00:41]} 46. g4 {[%clk 0:00:21]}  Ka3 {[%clk 0:00:41]} 47. g5 {[%clk 0:00:22]}  Kxa2 {[%clk 0:00:41]} 48. g6 {[%clk 0:00:23]}  a4 {[%clk 0:00:41]} 49. g7 {[%clk 0:00:23]}  a3 {[%clk 0:00:41]} 50. g8=Q+ {[%clk 0:00:23]}  Kb2 {[%clk 0:00:40]} 51. Qb8+ {[%clk 0:00:23]}  Kc2 {[%clk 0:00:40]} 52. Qc7+ {[%clk 0:00:23]}  Kb2 {[%clk 0:00:40]} 53. Qb6+ {[%clk 0:00:23]}  Kc2 {[%clk 0:00:40]} 54. Qc5+ {[%clk 0:00:24]}  Kb2 {[%clk 0:00:39]} 55. Qb4+ {[%clk 0:00:24]}  Ka2 {[%clk 0:00:38]} 56. Kg4 {[%clk 0:00:24]} 1-0


[Site "https://www.chess.com"]

[Event "Titled Tuesday Blitz September 27 Early 2022"]
[White "Zong, Davis"]
[Black "Kostiukov, Alexandr"]
[WhiteFideId "30903955"]
[BlackFideId "14108100"]
[WhiteElo "2061"]
[BlackElo "2202"]
[Result "1-0"]
[Round "09"]
[TimeControl "180+1"]
[Date "2022.09.27"]
[WhiteClock "0:00:12"]
[BlackClock "0:00:03"]

1. c4 {[%clk 0:02:57]}  c5 {[%clk 0:02:58]} 2. Nf3 {[%clk 0:02:57]}  Nf6 {[%clk 0:02:58]} 3. g3 {[%clk 0:02:56]}  g6 {[%clk 0:02:58]} 4. Bg2 {[%clk 0:02:57]}  Bg7 {[%clk 0:02:59]} 5. O-O {[%clk 0:02:57]}  O-O {[%clk 0:02:59]} 6. d4 {[%clk 0:02:56]}  cxd4 {[%clk 0:02:59]} 7. Nxd4 {[%clk 0:02:56]}  Nc6 {[%clk 0:02:59]} 8. Nc3 {[%clk 0:02:56]}  Nxd4 {[%clk 0:02:58]} 9. Qxd4 {[%clk 0:02:56]}  d6 {[%clk 0:02:59]} 10. Bg5 {[%clk 0:02:46]}  Be6 {[%clk 0:02:48]} 11. Qd3 {[%clk 0:02:43]}  Qa5 {[%clk 0:02:42]} 12. Bxf6 {[%clk 0:02:29]}  Bxf6 {[%clk 0:02:41]} 13. Rab1 {[%clk 0:02:17]}  Rab8 {[%clk 0:02:12]} 14. b4 {[%clk 0:02:15]}  Qa6 {[%clk 0:01:47]} 15. Nd5 {[%clk 0:02:10]}  Bxd5 {[%clk 0:01:44]} 16. Bxd5 {[%clk 0:02:05]}  Qxa2 {[%clk 0:01:39]} 17. h4 {[%clk 0:02:01]}  Qa4 {[%clk 0:01:27]} 18. h5 {[%clk 0:01:59]}  Kg7 {[%clk 0:01:27]} 19. Qe3 {[%clk 0:01:47]}  a6 {[%clk 0:01:00]} 20. Kg2 {[%clk 0:01:43]}  Qc2 {[%clk 0:00:51]} 21. Rh1 {[%clk 0:01:25]}  g5 {[%clk 0:00:45]} 22. h6+ {[%clk 0:01:21]}  Kh8 {[%clk 0:00:43]} 23. Qf3 {[%clk 0:01:16]}  Qc3 {[%clk 0:00:35]} 24. Qg4 {[%clk 0:01:04]}  Qd4 {[%clk 0:00:27]} 25. Qf3 {[%clk 0:00:52]}  b5 {[%clk 0:00:23]} 26. Be4 {[%clk 0:00:41]}  e6 {[%clk 0:00:15]} 27. Rhd1 {[%clk 0:00:37]}  Qe5 {[%clk 0:00:15]} 28. cxb5 {[%clk 0:00:35]}  Rxb5 {[%clk 0:00:14]} 29. Rxd6 {[%clk 0:00:34]}  Be7 {[%clk 0:00:10]} 30. Rxa6 {[%clk 0:00:28]}  f5 {[%clk 0:00:09]} 31. Bd3 {[%clk 0:00:20]}  Rxb4 {[%clk 0:00:09]} 32. Rxb4 {[%clk 0:00:19]}  Bxb4 {[%clk 0:00:10]} 33. Ra7 {[%clk 0:00:16]}  Qf6 {[%clk 0:00:10]} 34. Qb7 {[%clk 0:00:13]}  Bc3 {[%clk 0:00:03]} 35. Qxh7# {[%clk 0:00:12]} 1-0


[Site "https://www.chess.com"]

[Event "Titled Tuesday Blitz September 27 Early 2022"]
[White "Aguilar, Juan"]
[Black "Gracia Alvarez, Gerardo Antonio"]
[WhiteFideId "3800091"]
[BlackFideId "5109124"]
[WhiteElo "2362"]
[BlackElo "2139"]
[Result "0-1"]
[Round "10"]
[TimeControl "180+1"]
[Date "2022.09.27"]
[WhiteClock "0:00:01"]
[BlackClock "0:00:04"]

1. d4 {[%clk 0:03:00]}  Nf6 {[%clk 0:02:59]} 2. c4 {[%clk 0:03:00]}  c5 {[%clk 0:02:59]} 3. d5 {[%clk 0:03:00]}  b5 {[%clk 0:03:00]} 4. Nf3 {[%clk 0:03:00]}  g6 {[%clk 0:02:56]} 5. a4 {[%clk 0:02:57]}  b4 {[%clk 0:02:55]} 6. Nbd2 {[%clk 0:02:50]}  Bg7 {[%clk 0:02:53]} 7. e4 {[%clk 0:02:49]}  d6 {[%clk 0:02:54]} 8. Bd3 {[%clk 0:02:38]}  a5 {[%clk 0:02:50]} 9. O-O {[%clk 0:02:37]}  O-O {[%clk 0:02:50]} 10. Re1 {[%clk 0:02:35]}  e5 {[%clk 0:02:49]} 11. Nf1 {[%clk 0:02:26]}  Nh5 {[%clk 0:02:44]} 12. Ng3 {[%clk 0:01:51]}  Nf4 {[%clk 0:02:41]} 13. Bf1 {[%clk 0:01:51]}  Qf6 {[%clk 0:02:34]} 14. Be3 {[%clk 0:01:31]}  Bg4 {[%clk 0:02:31]} 15. Qd2 {[%clk 0:00:54]}  Nd7 {[%clk 0:02:05]} 16. Kh1 {[%clk 0:00:53]}  h6 {[%clk 0:01:59]} 17. Ng1 {[%clk 0:00:50]}  Nb6 {[%clk 0:01:55]} 18. b3 {[%clk 0:00:48]}  Rae8 {[%clk 0:01:50]} 19. f3 {[%clk 0:00:46]}  Bc8 {[%clk 0:01:49]} 20. N1e2 {[%clk 0:00:45]}  Nxe2 {[%clk 0:01:48]} 21. Bxe2 {[%clk 0:00:43]}  Kh7 {[%clk 0:01:48]} 22. Rf1 {[%clk 0:00:40]}  Qh4 {[%clk 0:01:46]} 23. Bf2 {[%clk 0:00:37]}  Qd8 {[%clk 0:01:45]} 24. Rae1 {[%clk 0:00:35]}  f5 {[%clk 0:01:45]} 25. exf5 {[%clk 0:00:28]}  gxf5 {[%clk 0:01:45]} 26. Bd3 {[%clk 0:00:28]}  Kh8 {[%clk 0:01:42]} 27. Nh5 {[%clk 0:00:28]}  Qg5 {[%clk 0:01:28]} 28. Qxg5 {[%clk 0:00:26]}  hxg5 {[%clk 0:01:29]} 29. Nxg7 {[%clk 0:00:22]}  Kxg7 {[%clk 0:01:29]} 30. Be3 {[%clk 0:00:16]}  f4 {[%clk 0:01:17]} 31. Bd2 {[%clk 0:00:16]}  Nd7 {[%clk 0:01:15]} 32. g3 {[%clk 0:00:15]}  Kh6 {[%clk 0:00:58]} 33. gxf4 {[%clk 0:00:12]}  exf4 {[%clk 0:00:58]} 34. Re6+ {[%clk 0:00:10]}  Rxe6 {[%clk 0:00:58]} 35. dxe6 {[%clk 0:00:10]}  Ne5 {[%clk 0:00:59]} 36. Be4 {[%clk 0:00:08]}  Bxe6 {[%clk 0:00:59]} 37. Rd1 {[%clk 0:00:06]}  Nf7 {[%clk 0:00:42]} 38. Bc1 {[%clk 0:00:06]}  Rd8 {[%clk 0:00:35]} 39. h4 {[%clk 0:00:06]}  Kh5 {[%clk 0:00:34]} 40. hxg5 {[%clk 0:00:06]}  Kxg5 {[%clk 0:00:34]} 41. Rg1+ {[%clk 0:00:05]}  Kf6 {[%clk 0:00:34]} 42. Bxf4 {[%clk 0:00:05]}  Rh8+ {[%clk 0:00:34]} 43. Kg2 {[%clk 0:00:05]}  Rh4 {[%clk 0:00:25]} 44. Be3 {[%clk 0:00:05]}  Ng5 {[%clk 0:00:17]} 45. Bxg5+ {[%clk 0:00:04]}  Kxg5 {[%clk 0:00:18]} 46. Kf2+ {[%clk 0:00:04]}  Kf4 {[%clk 0:00:16]} 47. Rg6 {[%clk 0:00:04]}  Ke5 {[%clk 0:00:13]} 48. Rg5+ {[%clk 0:00:03]}  Kd4 {[%clk 0:00:13]} 49. Rg6 {[%clk 0:00:03]}  Ke5 {[%clk 0:00:08]} 50. Rg5+ {[%clk 0:00:03]}  Kf6 {[%clk 0:00:08]} 51. Rg6+ {[%clk 0:00:03]}  Kf7 {[%clk 0:00:09]} 52. Rg5 {[%clk 0:00:02]}  Rh2+ {[%clk 0:00:09]} 53. Ke3 {[%clk 0:00:01]}  Rb2 {[%clk 0:00:08]} 54. Bd5 {[%clk 0:00:01]}  Rxb3+ {[%clk 0:00:08]} 55. Ke4 {[%clk 0:00:01]}  Bxd5+ {[%clk 0:00:07]} 56. Kxd5 {[%clk 0:00:01]}  Rd3+ {[%clk 0:00:07]} 57. Kc6 {[%clk 0:00:01]}  b3 {[%clk 0:00:05]} 58. Rg2 {[%clk 0:00:01]}  Ke6 {[%clk 0:00:04]} 0-1


[Site "https://www.chess.com"]

[Event "Titled Tuesday Blitz September 27 Early 2022"]
[White "Aldokhin, Ivan"]
[Black "Piesik, Piotr"]
[WhiteFideId "24115720"]
[BlackFideId "1136194"]
[WhiteElo "2243"]
[BlackElo "2221"]
[Result "0-1"]
[Round "10"]
[TimeControl "180+1"]
[Date "2022.09.27"]
[WhiteClock "0:00:04"]
[BlackClock "0:00:15"]

1. e4 {[%clk 0:02:59]}  g6 {[%clk 0:02:36]} 2. d4 {[%clk 0:02:59]}  Bg7 {[%clk 0:02:36]} 3. Nc3 {[%clk 0:02:59]}  c6 {[%clk 0:02:37]} 4. Nf3 {[%clk 0:02:58]}  d6 {[%clk 0:02:37]} 5. h3 {[%clk 0:02:59]}  Nf6 {[%clk 0:02:37]} 6. Bg5 {[%clk 0:02:59]}  O-O {[%clk 0:02:38]} 7. Be2 {[%clk 0:02:58]}  Nbd7 {[%clk 0:02:38]} 8. O-O {[%clk 0:02:58]}  e5 {[%clk 0:02:37]} 9. Qd2 {[%clk 0:02:56]}  Qe7 {[%clk 0:02:36]} 10. Rfe1 {[%clk 0:02:53]}  Re8 {[%clk 0:02:36]} 11. Bf1 {[%clk 0:02:53]}  Nf8 {[%clk 0:02:35]} 12. d5 {[%clk 0:02:51]}  Qc7 {[%clk 0:02:27]} 13. a4 {[%clk 0:02:44]}  c5 {[%clk 0:02:19]} 14. Nb5 {[%clk 0:02:39]}  Qe7 {[%clk 0:02:17]} 15. b4 {[%clk 0:02:37]}  a6 {[%clk 0:02:13]} 16. Na3 {[%clk 0:02:36]}  cxb4 {[%clk 0:02:13]} 17. Qxb4 {[%clk 0:02:36]}  N8d7 {[%clk 0:02:12]} 18. Nc4 {[%clk 0:02:21]}  Nc5 {[%clk 0:02:12]} 19. Nfxe5 {[%clk 0:02:18]}  Qc7 {[%clk 0:02:05]} 20. Nd3 {[%clk 0:01:29]}  Ncxe4 {[%clk 0:01:59]} 21. Bxf6 {[%clk 0:01:07]}  Bxf6 {[%clk 0:01:59]} 22. Nb6 {[%clk 0:01:03]}  Bf5 {[%clk 0:01:47]} 23. Nxa8 {[%clk 0:01:01]}  Rxa8 {[%clk 0:01:47]} 24. Rab1 {[%clk 0:00:55]}  Bc3 {[%clk 0:01:45]} 25. Qxb7 {[%clk 0:00:54]}  Qxb7 {[%clk 0:01:45]} 26. Rxb7 {[%clk 0:00:55]}  Bxe1 {[%clk 0:01:45]} 27. Nxe1 {[%clk 0:00:56]}  Nc5 {[%clk 0:01:40]} 28. Rb6 {[%clk 0:00:53]}  Nxa4 {[%clk 0:01:38]} 29. Rxa6 {[%clk 0:00:50]}  Rxa6 {[%clk 0:01:38]} 30. Bxa6 {[%clk 0:00:51]}  Nc3 {[%clk 0:01:33]} 31. Bc4 {[%clk 0:00:45]}  Be4 {[%clk 0:01:32]} 32. f3 {[%clk 0:00:36]}  Bxd5 {[%clk 0:01:29]} 33. Ba6 {[%clk 0:00:33]}  f5 {[%clk 0:01:27]} 34. Kf2 {[%clk 0:00:33]}  Kf7 {[%clk 0:01:27]} 35. Ke3 {[%clk 0:00:33]}  Be6 {[%clk 0:01:14]} 36. Kd4 {[%clk 0:00:31]}  Na4 {[%clk 0:01:13]} 37. Nd3 {[%clk 0:00:28]}  g5 {[%clk 0:01:09]} 38. f4 {[%clk 0:00:22]}  h6 {[%clk 0:01:09]} 39. g3 {[%clk 0:00:19]}  Kf6 {[%clk 0:01:01]} 40. c4 {[%clk 0:00:16]}  Bd7 {[%clk 0:00:52]} 41. Bb5 {[%clk 0:00:14]}  Nb6 {[%clk 0:00:48]} 42. Nb4 {[%clk 0:00:09]}  Be6 {[%clk 0:00:45]} 43. c5 {[%clk 0:00:05]}  dxc5+ {[%clk 0:00:41]} 44. Kxc5 {[%clk 0:00:06]}  Nc8 {[%clk 0:00:41]} 45. Nd3 {[%clk 0:00:05]}  Ne7 {[%clk 0:00:40]} 46. Kd6 {[%clk 0:00:04]}  Nc8+ {[%clk 0:00:38]} 47. Kc5 {[%clk 0:00:04]}  Ne7 {[%clk 0:00:38]} 48. Ne5 {[%clk 0:00:05]}  gxf4 {[%clk 0:00:35]} 49. gxf4 {[%clk 0:00:05]}  Nd5 {[%clk 0:00:35]} 50. Nd3 {[%clk 0:00:04]}  Ne3 {[%clk 0:00:34]} 51. Kd4 {[%clk 0:00:04]}  Nc2+ {[%clk 0:00:28]} 52. Kc5 {[%clk 0:00:04]}  Bf7 {[%clk 0:00:24]} 53. Bc6 {[%clk 0:00:04]}  Bh5 {[%clk 0:00:24]} 54. Ne5 {[%clk 0:00:04]}  Be2 {[%clk 0:00:18]} 55. Kd6 {[%clk 0:00:04]}  Ne3 {[%clk 0:00:18]} 56. Nd7+ {[%clk 0:00:04]}  Kf7 {[%clk 0:00:18]} 57. Ke5 {[%clk 0:00:05]}  Bf1 {[%clk 0:00:16]} 58. Nc5 {[%clk 0:00:04]}  Bxh3 {[%clk 0:00:16]} 59. Bb5 {[%clk 0:00:03]}  Kg6 {[%clk 0:00:16]} 60. Be2 {[%clk 0:00:03]}  Bg4 {[%clk 0:00:15]} 61. Bd3 {[%clk 0:00:03]}  h5 {[%clk 0:00:15]} 62. Nd7 {[%clk 0:00:02]}  h4 {[%clk 0:00:14]} 63. Nf6 {[%clk 0:00:03]}  Bh3 {[%clk 0:00:14]} 64. Nd5 {[%clk 0:00:02]}  Nxd5 {[%clk 0:00:13]} 65. Kxd5 {[%clk 0:00:02]}  Bg4 {[%clk 0:00:12]} 66. Ke5 {[%clk 0:00:02]}  h3 {[%clk 0:00:12]} 67. Bf1 {[%clk 0:00:02]}  h2 {[%clk 0:00:12]} 68. Bg2 {[%clk 0:00:03]}  Kh5 {[%clk 0:00:12]} 69. Kf6 {[%clk 0:00:03]}  Kh4 {[%clk 0:00:12]} 70. Bh1 {[%clk 0:00:03]}  Kg3 {[%clk 0:00:13]} 71. Kg5 {[%clk 0:00:03]}  Kf2 {[%clk 0:00:13]} 72. Kh4 {[%clk 0:00:03]}  Kg1 {[%clk 0:00:14]} 73. Bd5 {[%clk 0:00:03]}  h1=Q+ {[%clk 0:00:13]} 74. Bxh1 {[%clk 0:00:03]}  Kxh1 {[%clk 0:00:14]} 75. Kg3 {[%clk 0:00:04]}  Kg1 {[%clk 0:00:14]} 76. Kh4 {[%clk 0:00:04]}  Kf2 {[%clk 0:00:15]} 0-1


[Site "https://www.chess.com"]

[Event "Titled Tuesday Blitz September 27 Early 2022"]
[White "Babazada, Khazar"]
[Black "Bortnyk, Olexandr"]
[WhiteFideId "13413554"]
[BlackFideId "14120828"]
[WhiteElo "2409"]
[BlackElo "2723"]
[Result "0-1"]
[Round "10"]
[TimeControl "180+1"]
[Date "2022.09.27"]
[WhiteClock "0:00:06"]
[BlackClock "0:00:04"]

1. Nf3 {[%clk 0:03:00]}  Nf6 {[%clk 0:02:56]} 2. g3 {[%clk 0:03:01]}  d6 {[%clk 0:02:57]} 3. d4 {[%clk 0:03:00]}  g6 {[%clk 0:02:58]} 4. Bg2 {[%clk 0:02:59]}  Bg7 {[%clk 0:02:58]} 5. O-O {[%clk 0:02:59]}  O-O {[%clk 0:02:59]} 6. Nc3 {[%clk 0:02:58]}  Nbd7 {[%clk 0:02:56]} 7. e4 {[%clk 0:02:57]}  e5 {[%clk 0:02:57]} 8. h3 {[%clk 0:02:57]}  b6 {[%clk 0:02:55]} 9. dxe5 {[%clk 0:02:25]}  dxe5 {[%clk 0:02:52]} 10. Qe2 {[%clk 0:02:24]}  Bb7 {[%clk 0:02:51]} 11. Rd1 {[%clk 0:02:24]}  Qe7 {[%clk 0:02:52]} 12. a4 {[%clk 0:02:12]}  Nc5 {[%clk 0:02:45]} 13. Bg5 {[%clk 0:02:07]}  a5 {[%clk 0:02:39]} 14. Qe3 {[%clk 0:01:33]}  c6 {[%clk 0:02:21]} 15. Nd2 {[%clk 0:01:32]}  Ba6 {[%clk 0:02:20]} 16. Bf1 {[%clk 0:01:29]}  Bxf1 {[%clk 0:02:20]} 17. Kxf1 {[%clk 0:01:29]}  Qe6 {[%clk 0:02:14]} 18. Kg2 {[%clk 0:01:28]}  Nfd7 {[%clk 0:02:12]} 19. Bh6 {[%clk 0:01:20]}  Rfd8 {[%clk 0:01:36]} 20. Bxg7 {[%clk 0:01:17]}  Kxg7 {[%clk 0:01:37]} 21. Qe2 {[%clk 0:01:14]}  Nf6 {[%clk 0:01:27]} 22. Nc4 {[%clk 0:01:14]}  Rab8 {[%clk 0:01:26]} 23. Rxd8 {[%clk 0:01:12]}  Rxd8 {[%clk 0:01:27]} 24. Nxb6 {[%clk 0:01:13]}  Rd4 {[%clk 0:01:26]} 25. b3 {[%clk 0:00:55]}  Ncxe4 {[%clk 0:01:10]} 26. Nxe4 {[%clk 0:00:55]}  Nxe4 {[%clk 0:01:10]} 27. Nc4 {[%clk 0:00:52]}  f6 {[%clk 0:01:07]} 28. f3 {[%clk 0:00:31]}  Ng5 {[%clk 0:01:02]} 29. Rh1 {[%clk 0:00:30]}  Qd5 {[%clk 0:00:56]} 30. h4 {[%clk 0:00:30]}  Ne6 {[%clk 0:00:36]} 31. Re1 {[%clk 0:00:27]}  Rxh4 {[%clk 0:00:35]} 32. Ne3 {[%clk 0:00:24]}  Qc5 {[%clk 0:00:32]} 33. Qa6 {[%clk 0:00:20]}  Rd4 {[%clk 0:00:29]} 34. Qb7+ {[%clk 0:00:20]}  Kg8 {[%clk 0:00:28]} 35. Re2 {[%clk 0:00:16]}  Rd8 {[%clk 0:00:24]} 36. Ng4 {[%clk 0:00:16]}  Qf8 {[%clk 0:00:20]} 37. c3 {[%clk 0:00:16]}  h5 {[%clk 0:00:20]} 38. Nf2 {[%clk 0:00:15]}  Qf7 {[%clk 0:00:16]} 39. Qxc6 {[%clk 0:00:15]}  Ng5 {[%clk 0:00:15]} 40. f4 {[%clk 0:00:13]}  exf4 {[%clk 0:00:09]} 41. gxf4 {[%clk 0:00:12]}  Nh7 {[%clk 0:00:10]} 42. Ne4 {[%clk 0:00:12]}  Kg7 {[%clk 0:00:06]} 43. Nc5 {[%clk 0:00:11]}  Kh6 {[%clk 0:00:06]} 44. Ne6 {[%clk 0:00:10]}  Re8 {[%clk 0:00:06]} 45. f5 {[%clk 0:00:08]}  gxf5 {[%clk 0:00:05]} 46. Qd6 {[%clk 0:00:08]}  Rg8+ {[%clk 0:00:05]} 47. Kh2 {[%clk 0:00:09]}  Rg4 {[%clk 0:00:05]} 48. Nd4 {[%clk 0:00:07]}  Qg6 {[%clk 0:00:04]} 49. Kh3 {[%clk 0:00:05]}  Ng5+ {[%clk 0:00:03]} 50. Kh2 {[%clk 0:00:06]}  Rh4+ {[%clk 0:00:04]} 51. Kg1 {[%clk 0:00:06]}  Ne4+ {[%clk 0:00:04]} 0-1


[Site "https://www.chess.com"]

[Event "Titled Tuesday Blitz September 27 Early 2022"]
[White "Balabayeva, Xeniya"]
[Black "Shapiro, Daniel"]
[WhiteFideId "13719688"]
[BlackFideId "2001780"]
[WhiteElo "1895"]
[BlackElo "2224"]
[Result "0-1"]
[Round "10"]
[TimeControl "180+1"]
[Date "2022.09.27"]
[WhiteClock "0:00:17"]
[BlackClock "0:00:39"]

1. e4 {[%clk 0:03:00]}  c5 {[%clk 0:02:59]} 2. Nf3 {[%clk 0:02:59]}  e6 {[%clk 0:02:59]} 3. g3 {[%clk 0:02:57]}  Nc6 {[%clk 0:02:58]} 4. Bg2 {[%clk 0:02:57]}  g6 {[%clk 0:02:58]} 5. O-O {[%clk 0:02:56]}  Bg7 {[%clk 0:02:58]} 6. c3 {[%clk 0:02:56]}  Nge7 {[%clk 0:02:57]} 7. Re1 {[%clk 0:02:55]}  e5 {[%clk 0:02:55]} 8. c4 {[%clk 0:02:52]}  d6 {[%clk 0:02:52]} 9. Nc3 {[%clk 0:02:53]}  O-O {[%clk 0:02:51]} 10. d3 {[%clk 0:02:52]}  h6 {[%clk 0:02:52]} 11. Nd5 {[%clk 0:02:48]}  Be6 {[%clk 0:02:51]} 12. Bd2 {[%clk 0:02:46]}  f5 {[%clk 0:02:49]} 13. a3 {[%clk 0:02:35]}  Qd7 {[%clk 0:02:43]} 14. Nh4 {[%clk 0:02:25]}  g5 {[%clk 0:02:38]} 15. Nxf5 {[%clk 0:02:12]}  Nxf5 {[%clk 0:02:37]} 16. exf5 {[%clk 0:02:09]}  Bxf5 {[%clk 0:02:38]} 17. Bc3 {[%clk 0:01:57]}  Rf7 {[%clk 0:02:25]} 18. Ne3 {[%clk 0:01:54]}  Be6 {[%clk 0:02:21]} 19. b4 {[%clk 0:01:50]}  Raf8 {[%clk 0:02:10]} 20. Rf1 {[%clk 0:01:44]}  b6 {[%clk 0:02:10]} 21. Qh5 {[%clk 0:01:35]}  Nd4 {[%clk 0:02:06]} 22. Qd1 {[%clk 0:01:12]}  Bh3 {[%clk 0:01:54]} 23. Bxd4 {[%clk 0:01:08]}  Bxg2 {[%clk 0:01:52]} 24. Kxg2 {[%clk 0:01:03]}  cxd4 {[%clk 0:01:37]} 25. Nd5 {[%clk 0:01:03]}  g4 {[%clk 0:01:34]} 26. Qe2 {[%clk 0:00:55]}  Rf3 {[%clk 0:01:28]} 27. Qe4 {[%clk 0:00:53]}  Qf7 {[%clk 0:01:15]} 28. Ra2 {[%clk 0:00:49]}  h5 {[%clk 0:01:15]} 29. h3 {[%clk 0:00:48]}  h4 {[%clk 0:01:06]} 30. gxh4 {[%clk 0:00:33]}  Rxh3 {[%clk 0:00:49]} 31. Qxg4 {[%clk 0:00:24]}  Rxd3 {[%clk 0:00:49]} 32. f4 {[%clk 0:00:21]}  Kh8 {[%clk 0:00:40]} 33. fxe5 {[%clk 0:00:17]}  Qxf1+ {[%clk 0:00:39]} 0-1


[Site "https://www.chess.com"]